Cogmind - Beta 13 @@@ ROGUE MODE // 2024.07.06 @ 08:50:15 Player: OmnomBrains Result: Destroyed by Y-45 Defender with Heavy Assault Rifle Performance ------------- Evolutions (2) 1000 Regions Visited (3) 600 Robots Destroyed (41) 205 Value Destroyed (1121) 1121 Prototype IDs (0) 0 Alien Tech Used (0) 0 Bonus (79) 79 TOTAL SCORE: 3005 Bonus ------- High Alert Combat Kills 79 Cogmind --------- Core Integrity 0/550 Matter 178/300 Energy 48/100 System Corruption 0% Temperature Cool (0) Movement Core (100) Ox1 Location -8/Materials Parts ------- > --- POWER (2) -------- (None) > --- PROPULSION (3) --- (None) > --- UTILITY (4) ------ Visual Processing Unit System Shield > --- WEAPON (2) ------- Shock Bomb Launcher > --- INVENTORY (5) ---- Improved Signal Interpreter Medium Laser Spread Laser Pulse Rifle Peak State ------------ > --- POWER ------------ Improved Ion Engine > --- PROPULSION ------- Aluminum Leg Aluminum Leg Carbon-fiber Leg > --- UTILITY ---------- Thermal Generator Medium Storage Unit Visual Processing Unit System Shield > --- WEAPON ----------- Pulse Rifle Improved Grenade Launcher > --- INVENTORY -------- Aluminum Leg Improved Signal Interpreter Hardened Medium Armor Plating System Shield Medium Laser Spread Laser Pulse Rifle Pulse Rifle Mining Laser [Rating: 24] Favorites ----------- Power Light Ion Engine Engine Light Ion Engine Power Core Light Nuclear Core Propulsion Aluminum Leg Treads Light Treads Leg Aluminum Leg Utility Visual Processing Unit Device Heat Sink Storage Small Storage Unit Processor Visual Processing Unit Hackware System Shield Protection Hardened Medium Armor Plating Weapon Pulse Rifle Energy Gun Pulse Rifle Ballistic Gun Light Assault Rifle Launcher Improved Grenade Launcher Build | -11 -10 -9 -8 ------- Run | Yrd Mat Mat Mat Slots Evolved 4 | . . 2 2 Power 1 | . . . 1 Propulsion 1 | . . 1 . Utility 2 | . . 1 1 Weapon . | . . . . Parts Attached 45 | 6 4 13 22 Power 6 | 1 1 2 2 Engine 5 | 1 1 2 1 Core 1 | . . . 1 Reactor . | . . . . Propulsion 9 | 2 . 3 4 Treads 3 | 2 . . 1 Leg 6 | . . 3 3 Wheel . | . . . . Hover . | . . . . Flight . | . . . . Utility 9 | 1 1 3 4 Device 3 | . . 2 1 Storage 2 | 1 . . 1 Processor 2 | . 1 1 . Hackware 1 | . . . 1 Protection 1 | . . . 1 Artifact . | . . . . Weapon 21 | 2 2 5 12 Energy Gun 14 | 1 2 4 7 Energy Cannon . | . . . . Ballistic Gun 2 | 1 . 1 . Ballistic Cannon . | . . . . Launcher 5 | . . . 5 Special Weapon . | . . . . Impact Weapon . | . . . . Slashing Weapon . | . . . . Piercing Weapon . | . . . . Special Melee Weapon . | . . . . Unidentified Prototypes . | . . . . Parts Lost 19 | . . 3 16 Power 4 | . . 1 3 Propulsion 5 | . . . 5 Utility 6 | . . 2 4 Weapon 4 | . . . 4 Highest Loss Streak 10 | . . 2 10 To Critical Strikes . | . . . . Average Slot Usage (%) 87 | . 90 89 83 Engine 11 | . 14 11 9 Core 1 | . . . 3 Treads 8 | . 28 3 2 Leg 15 | . . 25 16 Device 3 | . . 4 4 Storage 10 | . 14 11 8 Processor 9 | . 4 12 9 Hackware 3 | . . . 8 Protection 1 | . . . 3 Energy Gun 15 | . 14 15 16 Ballistic Gun 5 | . 14 6 . Naked Turns . | . . . . Heaviest Build 30 | 11 15 19 30 Greatest Support 40 | 40 40 40 35 Greatest Overweight (x) 9 | . . . 9 Average Overweight (x) . | . . . . Largest Inventory Capacity 10 | 8 8 8 10 Average Capacity 8 | 6 8 8 9 Most Carried 10 | 5 8 7 10 Average Carried 6 | 3 4 5 8 Final Capacity 8 | 8 8 8 5 Final Carried 7 | 4 7 6 4 Class Distribution -------------------- 72% | Mutant 27% | Scavenger-Mutant Dominant Class ---------------- Mutant | -10/Materials Mutant | -9/Materials Mutant | -8/Materials Resources | -11 -10 -9 -8 ----------- Run | Yrd Mat Mat Mat Matter Collected 687 | 260 52 144 231 Remotely . | . . . . Salvage Created 1185 | . 77 333 775 Parts 55 | . 10 19 26 Haulers Intercepted . | . . . . Recyclers Shooed 4 | . 2 . 2 Parts Field Recycled . | . . . . Retrieved Matter . | . . . . Parts Self-Destructed . | . . . . Prevented . | . . . . Kills | -11 -10 -9 -8 ------- Run | Yrd Mat Mat Mat Combat Hostiles Destroyed 28 | . 3 6 19 Guns 18 | . 3 6 9 AOE 9 | . . . 9 Classes Destroyed 10 | . 2 5 3 Worker 4 | . . 1 3 Builder 1 | . . . 1 Recycler 3 | . . 1 2 Mechanic 1 | . . 1 . Watcher 4 | . 1 1 2 Swarmer 8 | . 3 3 2 Grunt 13 | . . 1 12 Brawler 1 | . . . 1 Duelist 1 | . . . 1 Sentry 5 | . . 2 3 Best Kill Streak 10 | . 3 4 10 Combat Bots Only 9 | . 3 3 9 Max Kills in Single Turn 2 | . 1 1 2 Gunslinging 1 | . . . 1 Exploded 2 | . . . 2 Melee . | . . . . Uniques/NPCs Destroyed . | . . . . Combat | -11 -10 -9 -8 -------- Run | Yrd Mat Mat Mat Hostile Shots Fired 227 | . 22 57 148 Missed 48 | . 3 13 32 Damage Taken 2683 | . 149 436 2098 Core 706 | . 25 117 564 Absorbed by Shields . | . . . . Core Remaining (%) 86 | 100 90 70 . Volleys Fired 92 | . 22 30 40 Largest 2 | . 2 2 2 Hottest 128 | . 70 126 128 Shots Fired 181 | . 44 60 77 Gun 167 | . 44 60 63 Cannon . | . . . . Launcher 14 | . . . 14 Special . | . . . . Kinetic 46 | . 22 24 . Thermal 121 | . 22 36 63 Explosive 13 | . . . 13 Electromagnetic 1 | . . . 1 Robot Hit Streak 15 | . 4 10 15 Robot Miss Streak 9 | . 5 3 9 Penetration Max . | . . . . Secondary Targets 3 | . 1 1 1 Max Gunslinging Chain 1 | . 1 1 1 Shots Hit Robots 111 | . 17 39 55 Core Hits 95 | . 8 16 71 Critical Kills . | . . . . Critical Parts Destroyed . | . . . . Critical Strikes 3 | . . 1 2 Burn 3 | . . 1 2 Melee Attacks . | . . . . Impact . | . . . . Slashing . | . . . . Piercing . | . . . . Sneak Attacks . | . . . . Combat Hostiles . | . . . . Follow-up Attacks . | . . . . Damage Inflicted 3060 | . 182 515 2363 Guns 1456 | . 182 515 759 Cannons . | . . . . Explosions 1589 | . . . 1589 Melee . | . . . . Ramming 15 | . . . 15 Kinetic 212 | . 100 112 . Thermal 1244 | . 82 403 759 Explosive 1483 | . . . 1483 Electromagnetic 106 | . . . 106 Impact . | . . . . Slashing . | . . . . Piercing . | . . . . Highest Corruption . | . . . . Average Corruption . | . . . . Corruption Purged . | . . . . Corruption Blocked . | . . . . Overload Shots . | . . . . Overflow Damage 53 | . . . 53 Projectiles . | . . . . Explosions 53 | . . . 53 Melee . | . . . . Knockbacks . | . . . . Impact . | . . . . Kinetic . | . . . . Secondary . | . . . . Self-Inflicted Damage 55 | . . . 55 Shots 1 | . . . 1 Rammed . | . . . . Targets Rammed 4 | . . . 4 Kicked 4 | . . . 4 Crushed . | . . . . Highest Temperature 595 | . 120 168 595 Average Temperature 123 | . 49 47 187 Received Heat Transfer 813 | . . 84 729 Effects 8 | . . . 8 Shutdowns 1 | . . . 1 Energy Bleed 1 | . . . 1 Interference 2 | . . . 2 Matter Decay 1 | . . . 1 Damage (minor) 2 | . . . 2 Damage (core) 1 | . . . 1 Siege Activations . | . . . . Robots Corrupted . | . . . . Combat Hostiles . | . . . . Parts Fried . | . . . . Impact Corruptions . | . . . . Robots Melted . | . . . . Combat Hostiles . | . . . . Parts Melted 5 | . . 2 3 Heat Transferred 2842 | . 211 1036 1595 Parts Sabotaged . | . . . . Parts Stolen . | . . . . Parts Stripped . | . . . . Power Chain Reactions . | . . . . Alert | -11 -10 -9 -8 ------- Run | Yrd Mat Mat Mat Peak Influence 583 | . 107 192 583 Initial 44 | . . 44 16 Average 140 | . 73 80 252 Maximum Alert Level 2 | . . . 2 Low Security (%) 76 | 100 100 100 36 Level 1 14 | . . . 38 Level 2 9 | . . . 24 Level 3 . | . . . . Level 4 . | . . . . Level 5 . | . . . . High Security . | . . . . Max Security . | . . . . Squads Dispatched 7 | . . . 7 Investigation 1 | . . . 1 Extermination . | . . . . Reinforcement 2 | . . . 2 Assault . | . . . . Garrison 4 | . . . 4 Intercept . | . . . . Searches Triggered . | . . . . Construction Impeded 1 | . . . 1 Haulers Reinforced . | . . . . Active Scanning Responses . | . . . . Cargo Convoy Interrupts . | . . . . Stealth | -11 -10 -9 -8 --------- Run | Yrd Mat Mat Mat Distress Signals 3 | . . 1 2 Communications Jammed . | . . . . Distress Signals . | . . . . Times Spotted 51 | . 6 10 35 Peak Tracking Total 9 | . 3 3 9 Tactical Retreats 4 | . . . 4 Traps | -11 -10 -9 -8 ------- Run | Yrd Mat Mat Mat Traps Triggered 1 | . . . 1 Indirectly . | . . . . Trap Hack Attempts . | . . . . Triggered . | . . . . Disarmed . | . . . . Reprogrammed . | . . . . Reused . | . . . . Traps Extracted . | . . . . Installed . | . . . . Triggered . | . . . . Machines | -11 -10 -9 -8 ---------- Run | Yrd Mat Mat Mat Machines Disabled 1 | . . . 1 Max in Single Turn 1 | . . . 1 Machines Repaired . | . . . . Machines Dismantled . | . . . . Machines Sabotaged . | . . . . Overloaded Fab Kills . | . . . . Hacking | -11 -10 -9 -8 --------- Run | Yrd Mat Mat Mat Machines Accessed 8 | . 3 2 3 Terminals 5 | . 1 1 3 Fabricators . | . . . . Repair Stations . | . . . . Recycling Units 3 | . 2 1 . Scanalyzers . | . . . . Garrison Access . | . . . . Total Hacks 17 | . 4 5 8 Successful 13 | . 3 4 6 Failed 4 | . 1 1 2 Catastrophic . | . . . . Database Lockouts . | . . . . Manual 1 | . . . 1 Terminals 10 | . 1 1 8 Fabricators . | . . . . Repair Stations . | . . . . Recycling Units 7 | . 3 4 . Scanalyzers . | . . . . Garrison Access . | . . . . Terminal Hacks 7 | . . 1 6 Robot Analysis 1 | . . . 1 Unreport Threat 1 | . . . 1 Patrol Status 1 | . . . 1 Hauler Manifests 1 | . . . 1 Zone Layout 3 | . . 1 2 Fabricator Hacks . | . . . . Repair Station Hacks . | . . . . Recycling Unit Hacks 6 | . 3 3 . Process 1 | . . 1 . Report Inventory 3 | . 2 1 . Retrieve Matter 1 | . . 1 . Retrieve Components 1 | . 1 . . Scanalyzer . | . . . . Garrison Access Hacks . | . . . . Unauthorized Hacks . | . . . . Terminals . | . . . . Fabricators . | . . . . Repair Stations . | . . . . Recycling Units . | . . . . Scanalyzers . | . . . . Garrison Access . | . . . . Data Cores Recovered . | . . . . Used . | . . . . Hacking Detections 3 | . 1 1 1 Full Trace Events . | . . . . Feedback Events . | . . . . Feedback Blocked . | . . . . Robot Schematics Acquired . | . . . . Robots Built . | . . . . Authchips . | . . . . Time . | . . . . Total Robot Build Rating . | . . . . Part Schematics Acquired . | . . . . Parts Built . | . . . . Authchips . | . . . . Time . | . . . . Total Part Build Rating . | . . . . Parts Repaired . | . . . . Time . | . . . . Parts Recycled . | . . . . Recycled Matter 119 | . . 119 . Retrieved Matter 119 | . . 119 . Retrieved Components 1 | . 1 . . Parts Scanalyzed . | . . . . Part Schematics Acquired . | . . . . Parts Damaged . | . . . . Bothacking | -11 -10 -9 -8 ------------ Run | Yrd Mat Mat Mat Used RIF Installer . | . . . . Robots Hacked . | . . . . Non-combat . | . . . . Combat . | . . . . Robot Hacks Applied . | . . . . Relay Couplers Released . | . . . . Fabnet Peak Effective % . | . . . . Robots Rewired . | . . . . Allies Hacked . | . . . . Hacks Repelled . | . . . . Allies | -11 -10 -9 -8 -------- Run | Yrd Mat Mat Mat Total Allies . | . . . . Largest Group . | . . . . Highest-Rated Group . | . . . . Highest-Rated Ally . | . . . . Total Orders . | . . . . Ally Attacks . | . . . . Total Damage . | . . . . Kills . | . . . . Allies Corrupted . | . . . . Allies Melted . | . . . . Intel | -11 -10 -9 -8 ------- Run | Yrd Mat Mat Mat Robot Analysis Total 1 | . . . 1 Derelict Logs Recovered . | . . . . Drone Launches . | . . . . Drone Recoveries . | . . . . Exploration | -11 -10 -9 -8 ------------- Run | Yrd Mat Mat Mat Turns Passed 1611 | 61 362 581 607 Spaces Moved 865 | 41 181 358 285 Core 39 | 16 . . 23 Treads 292 | 25 181 39 47 Legs 534 | . . 319 215 Wheels . | . . . . Hover . | . . . . Flight . | . . . . Fastest Speed 50 | 50 160 120 100 Average Speed 142 | 117 160 124 156 Slowest Speed 500 | 160 160 160 500 Overloaded Moves . | . . . . Propulsion Burnouts . | . . . . Robots Hopped . | . . . . Cave-ins Triggered . | . . . . Exploration Rate (%) 26 | 4 41 26 33 Regions Visited 3 Branch Regions . Pre-discovered Areas . | . . . . Known Exits Taken . | . . . . Unknown Exits Taken 3 | 1 1 1 . Scrap Searched . | . . . . Spaces Dug 13 | . . . 13 Terrain Destroyed 141 | . . . 141 Melee . | . . . . Projectile . | . . . . AOE 141 | . . . 141 Terrain Rammed . | . . . . Walls Destroyed . | . . . . Machines Disabled . | . . . . Actions | -11 -10 -9 -8 --------- Run | Yrd Mat Mat Mat Total 1066 | 53 213 437 363 Wait 24 | . 1 23 . Move 862 | 40 180 357 285 Hop . | . . . . Pick Up 32 | 7 5 9 11 Fast Attach 4 | 3 . . 1 Attach 19 | 3 1 6 9 Detach . | . . . . Swap 22 | . 3 7 12 Drop 7 | . 1 5 1 Fire 92 | . 22 30 40 Melee . | . . . . Ram . | . . . . Kick 4 | . . . 4 Crush . | . . . . Escape Stasis . | . . . . Rewire . | . . . . Trap . | . . . . Miscellaneous . | . . . . Route ------- -11/Scrapyard -10/Materials -9/Materials -8/Materials (discovered 1 exit: [*Fac]) History --------- Turn | Location | Event 15 | -11/Scrapyard | Discovered new exit (range 14) 62 | -11/Scrapyard | Entered Materials 318 | -10/Materials | Discovered new exit (range 17) 329 | -10/Materials | Build established: Mutant 424 | -10/Materials | Entered another Materials area 424 | -9/Materials | Evolved 2 slots: Propulsion x1, Utility x1 748 | -9/Materials | Discovered new exit (range 5) 1005 | -9/Materials | Entered another Materials area 1005 | -8/Materials | Evolved 2 slots: Power x1, Utility x1 1168 | -8/Materials | Build established: Scavenger-Mutant 1195 | -8/Materials | Garrison activated, responded to threat 1312 | -8/Materials | Garrison activated, responded to threat 1384 | -8/Materials | Core integrity fell below 50% 1407 | -8/Materials | Destroyed 9 combat bots 1417 | -8/Materials | Lost 10 parts (2p4n2u2w) 1518 | -8/Materials | Discovered new exit (range 18) 1520 | -8/Materials | Core integrity fell below 20% 1612 | -8/Materials | Destroyed by Y-45 Defender with Heavy Assault Rifle Last Messages --------------- Acquired 3 matter. Lgt. Treads destroyed. K-01 Serf collects debris. Triggered Alarm Trap. An alarm sounds. ALERT: Alarm triggered, dispatching investigation squad. K-01 Serf collects debris. Med. Storage Unit destroyed. Knocked back. Pulse Rifle destroyed. Lgt. Nuclear Core destroyed. U-05 Engineer lays Concrete. G-47 Trooper destroyed. G-50 Soldier destroyed. Imp. Grenade Launcher destroyed. G-47 Trooper IFF system glitched. Hrd. Medium Armor Plating destroyed. M-13 Machinist repairs Y-45 Defender. Knocked back. Map ----- +----------------------------------------------------+ | ??????????????????????????????????????????? | | ??????????????????????????????????????????? | | ??????????????????????????????????????????? | | ????????????????????????########??????????? | | ????????????????????????# #??????????? | | ????????????????????????# #??????????? | | ????????????????????????# """ #??????????? | | ????????????????????????# """ #??????????? | | ????????????????????????# """ #??????????? | | ????????????????????????# #??????????? | | ???????????????#+###########+############## | | ??????????? % | | ??????????? < % % | | ??????????? "" | | ?????????????## ###+####### """" | | ????????????????????????????# """"" " | | ????????????????????????????#= """"" T | | ????????????????????????????# """ " | | ??????????????#?????????????# | | ??????????????# ????????????# | | ??????????????# ????????????# ########### | | ??????????????# ???????????# #?????????# | | ??????????????# ???????????#] #?????????# | | ??????????????# ??????????#|! #?????????# | | ?????????+##### ###########!% #?????????# | | ????# @ Ym #?????????# | | ????# % H #???????# | | ????# g= #???????# | | ????# ##### ############### g%% ######### | | ??????????#???????????????? = ## # | | ??????????????????????????? # ## """ # | | ??????????????????????????? # #### """ + | | ????????????????????????????# #?????????? | | ????????????????????????????/ #?????????? | | ????????????????????????????# #?????????? | | ????????????????????????????# #?????????? | | ????????????????????????????? #?????????? | | ????????????????????????????? #?????????? | | ????????????????????????????? +?????????? | | ????????????????????????????? #?????????? | | ????????????????????????????? #?????????? | | ????????????????????????????? #?????????? | | ??????????????????????????????????????????? | | ??????????????????????????????????????????? | | ??????????????????????????????????????????? | | ??????????????????????????????????????????? | | ??????????????????????????????????????????? | | ??????????????????????????????????????????? | | ??????????????????????????????????????????? | | ??????????????????????????????????????????? | +----------------------------------------------------+ Best States ------------- Heat Dissipation 41 Energy Generation 17 Energy Capacity 290 Matter Stores 300 Matter Capacity 300 Sight Range 18 Robot Scan Range 14 Terrain Scan Density 10 Armor Coverage 225 Evasion (%) 55 Targeting Accuracy 6 Recoil Reduction 2 Defensive Hacking 10 Item Schematics ----------------- None Robot Schematics ------------------ None Fabricated ------------ Nothing Alien Tech Used ----------------- None Achievements -------------- None Challenges ------------ None Game ------ Seed BombRecoilTorch Manual? 0 Play Time 00:24:01 Cumulative 9.7 hours Start 2024.07.06 @ 08:25:16 End 2024.07.06 @ 08:50:15 Sessions 1 Manual Loads 0 Difficulty Rogue Special Mode None Game No. 12 Rogue 12 Adventurer 0 Explorer 0 Win Type - Total 0 Types 0/0/0/0/0/0/0/0/0 Lore% 13 Gallery% 14 Achievement% 14 Wizard Run 0 Options --------- Layout 1 ASCII 0 Keyboard 0 Movement Mouse Keybinds 0 Fullscreen 1 Font 24/Terminus Map View 50x35 Zoom Use 0% Tactical HUD 0 Map Filters NONE Filters NONE Steam 1 RUN: a2db029b-0e4d-434d-8992-0cc6bffb866c